[Event "GER-ch Youth U10 2020"]
[Site "Willingen"]
[Date "2020.10.30"]
[Round "5.7"]
[White "Marcziter, Alex"]
[Black "Braun, Julian"]
[Result "1-0"]
[ECO "C57"]
[WhiteElo "1401"]
[BlackElo "1441"]
[Annotator "NA RC"]
[PlyCount "75"]
[EventDate "2020.10.27"]
[EventType "swiss"]
[EventRounds "7"]
[EventCountry "GER"]
[SourceTitle "playchess.com"]
[Source "ChessBase"]
[SourceQuality "1"]
[TimeControl "40/4500+30:900+30"]

1. e4 {[%emt 0:00:00]} e5 {[%emt 0:00:00]} 2. Nf3 {[%emt 0:00:54]} Nc6 {[%emt 0:00:00]} 3. Bc4 {[%emt 0:01:14]} Nf6 {[%emt 0:00:00]} 4. Ng5 {[%emt 0:02:00]} d5 {[%emt 0:00:00]} 5. exd5 {[%emt 0:01:27]} Nd4 {[%emt 0:00:08]} 6. c3 {[%emt 0:01:39]} b5 {[%emt 0:00:08]} 7. Bf1 {[%emt 0:01:29]} Nxd5 {[%emt 0:00:20]} 8. Nf3 {[%emt 0:05:31]} Nxf3+ {[%emt 0:06:35]} 9. Qxf3 {[%emt 0:00:35]} a6 {[%emt 0:02:25]} 10. d3 {[%emt 0:04:03]} Rb8 {[%emt 0:09:29]} 11. Nd2 {[%emt 0:04:38]} Bb7 {[%emt 0:03:36]} 12. Qg3 {[%emt 0:02:14]} Nf6 {[%emt 0:06:30]} 13. Qxe5+ {[%emt 0:02:44]} Be7 {[%emt 0:00:57]} 14. Nb3 {[%emt 0:06:51]} O-O {[%emt 0:04:06]} 15. Qg3 {[%emt 0:03:30]} Bd6 {[%emt 0:04:40]} 16. Qh3 {[%emt 0:01:30]} Re8+ {[%emt 0:02:42]} 17. Be3 {[%emt 0:01:32]} Nd5 {[%emt 0:06:15]} 18. Kd2 {[%emt 0:06:14]} Qf6 {[%emt 0:09:00]} 19. Re1 {[%emt 0:03:48]} Nxe3 {[%emt 0:02:28]} 20. fxe3 {[%emt 0:00:23]} b4 {[%emt 0:01:26]} 21. d4 {[%emt 0:04:00]} bxc3+ {[%emt 0:00:56]} 22. bxc3 {[%emt 0:00:10]} Bd5 {[%emt 0:05:25]} 23. Bd3 {[%emt 0:04:20]} h6 {[%emt 0:00:46]} 24. Rhf1 {[%emt 0:01:20]} Qg5 {[%emt 0:01:48]} 25. Rf5 {[%emt 0:09:24]} Bxg2 {[%emt 0:03:00]} 26. Rxg5 {[%emt 0:01:15]} Bxh3 {[%emt 0:00:21]} 27. Ra5 {[%emt 0:01:02]} Bc8 {[%emt 0:02:38]} 28. Re2 {[%emt 0:02:12]} Rb6 {[%emt 0:01:42]} 29. Rg2 {[%emt 0:01:35]} Bb7 {[%emt 0:02:13]} 30. Rf2 {[%emt 0:00:45]} Re7 {[%emt 0:02:11]} 31. Raf5 {[%emt 0:02:36]} Bc8 {[%emt 0:01:13]} 32. Rh5 {[%emt 0:01:01]} Bg4 {[%emt 0:03:36]} 33. Rh4 {[%emt 0:00:57]} Be6 {[%emt 0:04:24]} 34. c4 {[%emt 0:01:47]} Bb4+ {[%emt 0:00:28]} 35. Kc2 {[%emt 0:01:23]} Be1 {[%emt 0:00:09]} 36. Rhf4 {[%emt 0:00:31]} Bxf2 {[%emt 0:00:20]} 37. Rxf2 {[%emt 0:00:04]} g5 {[%emt 0:01:01]} 38. Rg2 {[%emt 0:00:20]} 1-0

[Event "GER-ch Youth U10 2020"]
[Site "Willingen"]
[Date "2020.10.30"]
[Round "5.8"]
[White "Xue, Luka"]
[Black "Aweh, Mads"]
[Result "1-0"]
[ECO "A46"]
[WhiteElo "1473"]
[BlackElo "1328"]
[Annotator "NA RC"]
[PlyCount "57"]
[EventDate "2020.10.27"]
[EventType "swiss"]
[EventRounds "7"]
[EventCountry "GER"]
[SourceTitle "playchess.com"]
[Source "ChessBase"]
[SourceQuality "1"]
[TimeControl "40/4500+30:900+30"]

1. Nf3 {[%emt 0:00:00]} Nf6 {[%emt 0:00:00]} 2. d4 {[%emt 0:00:38]} e6 {[%emt 0:00:11]} 3. Bg5 {[%emt 0:00:42]} Be7 {[%emt 0:00:34]} 4. e3 {[%emt 0:00:32]} d5 {[%emt 0:01:00]} 5. Bd3 {[%emt 0:00:45]} h6 {[%emt 0:00:28]} 6. Bh4 {[%emt 0:00:58]} Nbd7 {[%emt 0:00:35]} 7. O-O {[%emt 0:00:42]} O-O {[%emt 0:00:32]} 8. Nbd2 {[%emt 0:00:48]} b6 {[%emt 0:01:36]} 9. c3 {[%emt 0:01:05]} Bb7 {[%emt 0:01:33]} 10. Ne5 {[%emt 0:05:07]} Nxe5 11. dxe5 {[%emt 0:00:09]} Nd7 {[%emt 0:02:22]} 12. Bxe7 {[%emt 0:00:45]} Qxe7 {[%emt 0:00:09]} 13. f4 {[%emt 0:00:58]} Rfd8 {[%emt 0:01:30]} 14. Qg4 {[%emt 0:01:40]} c5 {[%emt 0:01:26]} 15. Nf3 {[%emt 0:01:54]} Rac8 {[%emt 0:02:24]} 16. Rad1 {[%emt 0:01:33]} Nf8 {[%emt 0:04:13]} 17. Bb1 {[%emt 0:02:20]} Rd7 {[%emt 0:01:54]} 18. Nh4 {[%emt 0:01:18]} Ba6 {[%emt 0:01:18]} 19. Rf2 {[%emt 0:01:51]} Rcd8 {[%emt 0:01:02]} 20. f5 {[%emt 0:00:40]} Bc8 {[%emt 0:03:02]} 21. f6 {[%emt 0:00:47]} g6 {[%emt 0:03:02]} 22. fxe7 {[%emt 0:00:24]} Rxe7 {[%emt 0:00:07]} 23. Rdf1 {[%emt 0:03:14]} Ba6 {[%emt 0:01:43]} 24. Nxg6 {[%emt 0:01:13]} fxg6 {[%emt 0:00:47]} 25. Rxf8+ {[%emt 0:02:05]} Rxf8 {[%emt 0:00:08]} 26. Qxg6+ {[%emt 0:00:10]} Rg7 {[%emt 0:00:10]} 27. Qxe6+ {[%emt 0:00:19]} Rff7 {[%emt 0:00:29]} 28. Qe8+ {[%emt 0:00:21]} Rf8 {[%emt 0:00:10]} 29. Rxf8# 1-0

[Event "GER-ch Youth U10 2020"]
[Site "Willingen"]
[Date "2020.10.30"]
[Round "5.9"]
[White "Schuricht, Emil Frederick"]
[Black "Stichter, Constantin"]
[Result "1-0"]
[ECO "D35"]
[WhiteElo "1451"]
[BlackElo "1476"]
[Annotator "NA RC"]
[PlyCount "65"]
[EventDate "2020.10.27"]
[EventType "swiss"]
[EventRounds "7"]
[EventCountry "GER"]
[SourceTitle "playchess.com"]
[Source "ChessBase"]
[SourceQuality "1"]
[TimeControl "40/4500+30:900+30"]

1. d4 d5 2. c4 e6 3. Nc3 Nf6 4. cxd5 exd5 5. Bg5 Be7 {[%emt 0:00:08]} 6. e3 {[%emt 0:00:00]} c6 {[%emt 0:00:04]} 7. Bd3 {[%emt 0:00:04]} O-O {[%emt 0:00:08]} 8. Nge2 {[%emt 0:00:10]} Nbd7 {[%emt 0:00:07]} 9. O-O {[%emt 0:00:06]} Re8 {[%emt 0:00:15]} 10. f3 {[%emt 0:00:06]} Nf8 {[%emt 0:00:14]} 11. Bh4 {[%emt 0:00:06]} Ne6 {[%emt 0:00:17]} 12. Bf2 {[%emt 0:00:39]} b6 {[%emt 0:00:09]} 13. Ng3 {[%emt 0:01:29]} g6 {[%emt 0:04:48]} 14. f4 {[%emt 0:03:52]} Bd6 {[%emt 0:07:37]} 15. Qc2 {[%emt 0:09:28]} Ng7 {[%emt 0:02:33]} 16. Nce2 Bb7 {[%emt 0:01:44]} 17. f5 {[%emt 0:10:20]} Ng4 {[%emt 0:01:18]} 18. fxg6 {[%emt 0:00:38]} hxg6 {[%emt 0:00:25]} 19. Bxg6 {[%emt 0:07:57]} fxg6 {[%emt 0:01:40]} 20. Qxg6 {[%emt 0:00:13]} Qh4 {[%emt 0:00:14]} 21. h3 {[%emt 0:01:04]} Nxf2 {[%emt 0:05:28]} 22. Rxf2 {[%emt 0:01:53]} Be7 {[%emt 0:01:37]} 23. Rf7 {[%emt 0:04:08]} Qh7 {[%emt 0:02:16]} 24. Qxh7+ {[%emt 0:03:30]} Kxh7 {[%emt 0:02:09]} 25. Nh5 {[%emt 0:07:20]} Kg6 {[%emt 0:01:31]} 26. Rxg7+ {[%emt 0:00:32]} Kxh5 {[%emt 0:00:17]} 27. Rf1 {[%emt 0:00:09]} Bc8 {[%emt 0:00:30]} 28. Rff7 {[%emt 0:01:10]} Bg5 {[%emt 0:01:26]} 29. Nf4+ {[%emt 0:08:54]} Bxf4 {[%emt 0:00:40]} 30. exf4 {[%emt 0:00:06]} Ba6 {[%emt 0:03:20]} 31. g4+ {[%emt 0:05:30]} Kh4 {[%emt 0:01:12]} 32. Kg2 {[%emt 0:00:18]} Re2+ {[%emt 0:02:05]} 33. Kf3 {[%emt 0:00:09]} 1-0

[Event "GER-ch Youth U10 2020"]
[Site "Willingen"]
[Date "2020.10.30"]
[Round "5.10"]
[White "Bangert, Jonas"]
[Black "Burkart, Lloyd Shang"]
[Result "0-1"]
[ECO "A46"]
[WhiteElo "1549"]
[BlackElo "1508"]
[Annotator "NA RC"]
[PlyCount "76"]
[EventDate "2020.10.27"]
[EventType "swiss"]
[EventRounds "7"]
[EventCountry "GER"]
[SourceTitle "playchess.com"]
[Source "ChessBase"]
[SourceQuality "1"]
[TimeControl "40/4500+30:900+30"]

1. d4 {[%emt 0:00:00]} Nf6 {[%emt 0:00:00]} 2. Nf3 {[%emt 0:00:00]} c5 {[%emt 0:00:26]} 3. c3 {[%emt 0:01:18]} Qc7 {[%emt 0:00:43]} 4. Bg5 {[%emt 0:02:34]} d5 {[%emt 0:00:34]} 5. e3 {[%emt 0:01:56]} e6 {[%emt 0:01:16]} 6. Nbd2 {[%emt 0:05:08]} Nbd7 {[%emt 0:01:00]} 7. Be2 {[%emt 0:03:53]} Bd6 {[%emt 0:02:01]} 8. Bh4 {[%emt 0:08:26]} c4 {[%emt 0:02:18]} 9. Qc2 {[%emt 0:07:01]} b5 {[%emt 0:01:20]} 10. a3 {[%emt 0:03:24]} Bb7 {[%emt 0:01:08]} 11. Bxf6 {[%emt 0:11:32]} Nxf6 {[%emt 0:00:11]} 12. b4 {[%emt 0:00:59]} a6 {[%emt 0:02:53]} 13. O-O {[%emt 0:06:05]} O-O {[%emt 0:02:20]} 14. Rfb1 {[%emt 0:06:01]} Bc6 {[%emt 0:04:59]} 15. Qc1 {[%emt 0:02:15]} a5 {[%emt 0:07:48]} 16. Bd1 {[%emt 0:01:16]} Rfb8 {[%emt 0:03:38]} 17. Bc2 {[%emt 0:01:07]} h6 {[%emt 0:03:10]} 18. Qe1 {[%emt 0:01:27]} Ne4 {[%emt 0:07:22]} 19. Nf1 {[%emt 0:01:16]} Kf8 {[%emt 0:02:47]} 20. Bxe4 {[%emt 0:02:16]} dxe4 {[%emt 0:00:07]} 21. N3d2 {[%emt 0:00:22]} Ra6 {[%emt 0:07:49]} 22. Qd1 {[%emt 0:05:17]} Rba8 {[%emt 0:02:05]} 23. h3 {[%emt 0:01:11]} Qa7 {[%emt 0:00:27]} 24. Qc2 {[%emt 0:01:10]} f5 {[%emt 0:01:25]} 25. Ra2 {[%emt 0:02:48]} axb4 {[%emt 0:00:09]} 26. cxb4 {[%emt 0:00:15]} Rxa3 {[%emt 0:00:29]} 27. Rab2 {[%emt 0:00:27]} Bd5 {[%emt 0:02:12]} 28. Rc1 {[%emt 0:01:10]} c3 {[%emt 0:00:28]} 29. Rbb1 {[%emt 0:00:46]} cxd2 {[%emt 0:00:10]} 30. Nxd2 {[%emt 0:00:06]} Qa4 {[%emt 0:07:28]} 31. Qb2 {[%emt 0:01:23]} Ra2 {[%emt 0:01:03]} 32. Qc3 {[%emt 0:00:27]} Qa3 {[%emt 0:00:20]} 33. Nb3 {[%emt 0:03:41]} Bxb4 {[%emt 0:01:50]} 34. Qc7 {[%emt 0:00:46]} Bxb3 {[%emt 0:03:19]} 35. Qd7 {[%emt 0:00:37]} Be7 {[%emt 0:07:18]} 36. Rc7 {[%emt 0:00:42]} Bd5 {[%emt 0:01:03]} 37. Rb3 {[%emt 0:00:25]} Ra1+ {[%emt 0:00:13]} 38. Kh2 {[%emt 0:00:12]} Qd6+ {[%emt 0:00:05]} 0-1

[Event "GER-ch Youth U10 2020"]
[Site "Willingen"]
[Date "2020.10.30"]
[Round "5.11"]
[White "Zhang, Yibo"]
[Black "Barthel, Jacob"]
[Result "0-1"]
[ECO "C54"]
[WhiteElo "1299"]
[BlackElo "1231"]
[Annotator "NA RC"]
[PlyCount "192"]
[EventDate "2020.10.27"]
[EventType "swiss"]
[EventRounds "7"]
[EventCountry "GER"]
[SourceTitle "playchess.com"]
[Source "ChessBase"]
[SourceQuality "1"]
[TimeControl "40/4500+30:900+30"]

1. e4 {[%emt 0:00:00]} e5 {[%emt 0:00:00]} 2. Nf3 {[%emt 0:00:00]} Nc6 {[%emt 0:00:00]} 3. Bc4 {[%emt 0:00:00]} Bc5 {[%emt 0:00:00]} 4. c3 {[%emt 0:00:00]} Nf6 {[%emt 0:00:07]} 5. d3 {[%emt 0:00:00]} d6 {[%emt 0:00:15]} 6. O-O {[%emt 0:00:01]} Bg4 {[%emt 0:00:26]} 7. Re1 {[%emt 0:00:24]} h6 {[%emt 0:00:23]} 8. Nbd2 {[%emt 0:00:27]} O-O {[%emt 0:00:19]} 9. Nf1 {[%emt 0:00:20]} Re8 {[%emt 0:00:40]} 10. h3 {[%emt 0:00:21]} Bxf3 {[%emt 0:00:34]} 11. Qxf3 {[%emt 0:00:14]} Qe7 {[%emt 0:05:56]} 12. Ng3 {[%emt 0:00:48]} Na5 {[%emt 0:20:12]} 13. Bb5 {[%emt 0:00:28]} c6 {[%emt 0:00:39]} 14. Ba4 {[%emt 0:00:04]} b5 {[%emt 0:00:54]} 15. Bc2 {[%emt 0:00:26]} d5 {[%emt 0:01:31]} 16. b4 {[%emt 0:00:35]} dxe4 {[%emt 0:03:17]} 17. dxe4 {[%emt 0:00:30]} Bxb4 {[%emt 0:06:48]} 18. cxb4 {[%emt 0:01:15]} Qxb4 {[%emt 0:00:07]} 19. Bxh6 {[%emt 0:00:12]} Qc5 {[%emt 0:05:35]} 20. Rac1 {[%emt 0:00:54]} Qd6 {[%emt 0:04:49]} 21. Nf5 {[%emt 0:00:17]} Qd8 {[%emt 0:02:08]} 22. Bxg7 {[%emt 0:01:01]} Re6 {[%emt 0:02:30]} 23. Bh6 {[%emt 0:03:31]} Nh7 {[%emt 0:01:41]} 24. Qg3+ {[%emt 0:02:41]} Rg6 {[%emt 0:00:17]} 25. Qa3 {[%emt 0:00:43]} c5 {[%emt 0:02:52]} 26. Qxc5 {[%emt 0:05:20]} Nc6 {[%emt 0:00:30]} 27. Bb3 {[%emt 0:01:51]} Rc8 {[%emt 0:01:28]} 28. Qd5 {[%emt 0:03:06]} Qf6 {[%emt 0:03:03]} 29. Be3 {[%emt 0:09:43]} Ng5 {[%emt 0:01:42]} 30. Rxc6 {[%emt 0:02:14]} Rxc6 {[%emt 0:03:47]} 31. Qxc6 {[%emt 0:00:29]} Qxc6 {[%emt 0:00:10]} 32. Ne7+ {[%emt 0:00:05]} Kg7 {[%emt 0:00:08]} 33. Nxc6 {[%emt 0:00:05]} Nf3+ {[%emt 0:00:06]} 34. Kf1 {[%emt 0:00:23]} Nxe1 {[%emt 0:00:21]} 35. Nxe5 {[%emt 0:00:31]} Rxg2 {[%emt 0:02:29]} 36. Kxe1 {[%emt 0:00:50]} Rh2 {[%emt 0:00:10]} 37. Bh6+ {[%emt 0:00:44]} Kh7 {[%emt 0:00:47]} 38. Nxf7 {[%emt 0:00:11]} Kg6 {[%emt 0:00:47]} 39. Ne5+ {[%emt 0:01:53]} Kh5 {[%emt 0:00:33]} 40. Be6 {[%emt 0:00:19]} Rh1+ {[%emt 0:00:32]} 41. Ke2 {[%emt 0:15:23]} Kxh6 {[%emt 0:15:07]} 42. Bd7 {[%emt 0:00:23]} Ra1 {[%emt 0:00:37]} 43. Be6 {[%emt 0:00:26]} Kg5 {[%emt 0:00:43]} 44. Bd5 {[%emt 0:00:54]} Rh1 {[%emt 0:00:26]} 45. Nf3+ {[%emt 0:00:59]} Kf4 {[%emt 0:00:33]} 46. Nh4 {[%emt 0:04:17]} Rxh3 {[%emt 0:00:50]} 47. Ng2+ {[%emt 0:00:15]} Ke5 {[%emt 0:01:23]} 48. f4+ {[%emt 0:00:34]} Kd4 {[%emt 0:00:42]} 49. f5 {[%emt 0:00:13]} Ke5 {[%emt 0:00:07]} 50. Ne3 {[%emt 0:00:39]} Rh2+ {[%emt 0:05:03]} 51. Kd3 {[%emt 0:00:15]} Rh3 {[%emt 0:00:13]} 52. Ke2 {[%emt 0:03:26]} Rh2+ {[%emt 0:00:15]} 53. Kf3 {[%emt 0:00:17]} Rh3+ {[%emt 0:00:08]} 54. Kf2 {[%emt 0:00:10]} Kf4 {[%emt 0:01:21]} 55. Ng2+ {[%emt 0:01:12]} Ke5 {[%emt 0:00:27]} 56. Kg1 {[%emt 0:02:40]} a5 {[%emt 0:01:52]} 57. Kf2 {[%emt 0:00:47]} b4 {[%emt 0:01:13]} 58. Kg1 {[%emt 0:00:27]} a4 {[%emt 0:00:44]} 59. Kf2 {[%emt 0:00:22]} a3 {[%emt 0:03:20]} 60. Kg1 {[%emt 0:00:10]} b3 {[%emt 0:00:07]} 61. Bxb3 {[%emt 0:00:15]} Rxb3 {[%emt 0:00:05]} 62. Ne1 {[%emt 0:01:35]} Rb1 {[%emt 0:00:31]} 63. Kf1 {[%emt 0:00:19]} Ra1 {[%emt 0:00:07]} 64. Kf2 {[%emt 0:00:32]} Rxa2+ {[%emt 0:00:23]} 65. Ke3 {[%emt 0:00:24]} Rh2 {[%emt 0:00:28]} 66. Nf3+ {[%emt 0:00:11]} Kf6 {[%emt 0:00:18]} 67. Nxh2 {[%emt 0:00:05]} a2 {[%emt 0:00:06]} 68. Ng4+ {[%emt 0:00:04]} Ke7 {[%emt 0:00:09]} 69. e5 {[%emt 0:00:35]} a1=Q {[%emt 0:01:28]} 70. f6+ {[%emt 0:00:05]} Ke6 {[%emt 0:00:11]} 71. Ke4 {[%emt 0:00:27]} Qa4+ {[%emt 0:00:15]} 72. Kf3 {[%emt 0:00:11]} Qd1+ {[%emt 0:01:03]} 73. Kf4 {[%emt 0:00:15]} Qd4+ {[%emt 0:00:59]} 74. Kf3 {[%emt 0:00:23]} Kf5 {[%emt 0:00:35]} 75. Ne3+ {[%emt 0:01:02]} Kg5 {[%emt 0:00:30]} 76. f7 {[%emt 0:00:51]} Qf4+ {[%emt 0:00:11]} 77. Ke2 {[%emt 0:00:18]} Qxf7 {[%emt 0:00:06]} 78. Kd3 {[%emt 0:00:41]} Kf4 {[%emt 0:00:26]} 79. Nc4 {[%emt 0:00:39]} Qd5+ {[%emt 0:00:26]} 80. Kc3 {[%emt 0:00:20]} Ke4 {[%emt 0:01:00]} 81. e6 {[%emt 0:00:45]} Qxe6 {[%emt 0:00:13]} 82. Nd2+ {[%emt 0:00:40]} Kd5 {[%emt 0:00:59]} 83. Kd3 {[%emt 0:00:17]} Qh3+ {[%emt 0:00:13]} 84. Ke2 {[%emt 0:00:18]} Kd4 {[%emt 0:00:44]} 85. Nf3+ {[%emt 0:00:14]} Kc4 {[%emt 0:00:41]} 86. Ke3 {[%emt 0:00:18]} Kd5 {[%emt 0:00:21]} 87. Ke2 {[%emt 0:00:32]} Qg4 {[%emt 0:00:23]} 88. Ke3 {[%emt 0:00:41]} Qg3 {[%emt 0:00:37]} 89. Ke2 {[%emt 0:00:14]} Ke4 {[%emt 0:00:11]} 90. Nd2+ {[%emt 0:00:27]} Kf4 {[%emt 0:00:31]} 91. Nc4 {[%emt 0:00:29]} Qc3 {[%emt 0:00:43]} 92. Nd2 {[%emt 0:00:47]} Qc2 {[%emt 0:00:42]} 93. Ke1 {[%emt 0:00:37]} Ke3 {[%emt 0:00:39]} 94. Nf1+ {[%emt 0:00:14]} Kd3 {[%emt 0:00:06]} 95. Ng3 {[%emt 0:00:32]} Qg2 {[%emt 0:00:20]} 96. Kd1 {[%emt 0:01:05]} Qd2# 0-1

[Event "GER-ch Youth U10 2020"]
[Site "Willingen"]
[Date "2020.10.30"]
[Round "5.12"]
[White "Malinowsky, Levi"]
[Black "Rosenkranz, Lennard"]
[Result "1-0"]
[ECO "B53"]
[WhiteElo "1606"]
[BlackElo "1467"]
[Annotator "NA RC"]
[PlyCount "54"]
[EventDate "2020.10.27"]
[EventType "swiss"]
[EventRounds "7"]
[EventCountry "GER"]
[SourceTitle "playchess.com"]
[Source "ChessBase"]
[SourceQuality "1"]
[TimeControl "40/4500+30:900+30"]

1. e4 {[%emt 0:00:00]} c5 {[%emt 0:00:00]} 2. Nf3 {[%emt 0:00:00]} d6 {[%emt 0:00:00]} 3. d4 {[%emt 0:00:07]} cxd4 {[%emt 0:00:08]} 4. Qxd4 {[%emt 0:00:12]} a6 {[%emt 0:00:36]} 5. c4 {[%emt 0:01:41]} Nf6 {[%emt 0:01:21]} 6. Nc3 {[%emt 0:01:56]} e6 {[%emt 0:03:29]} 7. b3 {[%emt 0:02:01]} g6 {[%emt 0:05:22]} 8. Bb2 {[%emt 0:03:16]} Bg7 {[%emt 0:00:40]} 9. Be2 {[%emt 0:01:54]} O-O {[%emt 0:00:50]} 10. Qe3 {[%emt 0:02:45]} Qc7 {[%emt 0:03:18]} 11. O-O {[%emt 0:01:26]} Nbd7 {[%emt 0:03:29]} 12. Rfd1 {[%emt 0:04:48]} b6 {[%emt 0:29:29]} 13. Rd2 {[%emt 0:21:06]} Nc5 {[%emt 0:10:09]} 14. Rad1 {[%emt 0:10:17]} Nb7 {[%emt 0:00:13]} 15. h3 {[%emt 0:01:31]} Rd8 {[%emt 0:03:18]} 16. Na4 {[%emt 0:05:39]} Nc5 {[%emt 0:06:19]} 17. Nxc5 {[%emt 0:00:14]} Qxc5 {[%emt 0:04:44]} 18. Bd4 {[%emt 0:00:19]} Qc6 {[%emt 0:01:25]} 19. Bxb6 {[%emt 0:01:20]} Rd7 {[%emt 0:03:08]} 20. Bd3 {[%emt 0:02:35]} Bh6 {[%emt 0:01:34]} 21. Qxh6 {[%emt 0:00:58]} Qxb6 {[%emt 0:00:08]} 22. Bc2 {[%emt 0:05:34]} e5 {[%emt 0:01:49]} 23. Ng5 {[%emt 0:04:43]} Bb7 {[%emt 0:01:45]} 24. Kf1 {[%emt 0:00:58]} Qc5 {[%emt 0:01:24]} 25. Re1 {[%emt 0:02:17]} Qa5 {[%emt 0:00:58]} 26. Rd3 {[%emt 0:01:55]} Bxe4 {[%emt 0:01:49]} 27. Rxe4 {[%emt 0:01:28]} Nxe4 {[%emt 0:00:00]} 1-0

[Event "GER-ch Youth U10 2020"]
[Site "Willingen"]
[Date "2020.10.30"]
[Round "5.13"]
[White "Laux, Filip"]
[Black "Middendorf, Sven-Jonas"]
[Result "0-1"]
[ECO "C54"]
[WhiteElo "1198"]
[BlackElo "1355"]
[Annotator "NA RC"]
[PlyCount "70"]
[EventDate "2020.10.27"]
[EventType "swiss"]
[EventRounds "7"]
[EventCountry "GER"]
[SourceTitle "playchess.com"]
[Source "ChessBase"]
[SourceQuality "1"]
[TimeControl "40/4500+30:900+30"]

1. e4 {[%emt 0:00:00]} e5 {[%emt 0:00:00]} 2. Nf3 {[%emt 0:00:00]} Nc6 {[%emt 0:00:00]} 3. Bc4 {[%emt 0:00:00]} Bc5 {[%emt 0:00:00]} 4. c3 {[%emt 0:00:17]} Nf6 {[%emt 0:00:00]} 5. d3 {[%emt 0:00:14]} d6 {[%emt 0:00:00]} 6. Bb3 {[%emt 0:00:24]} Be6 {[%emt 0:00:28]} 7. Bc2 {[%emt 0:00:34]} a5 {[%emt 0:02:02]} 8. O-O {[%emt 0:01:10]} Bb6 {[%emt 0:01:59]} 9. h3 {[%emt 0:00:46]} h6 {[%emt 0:02:18]} 10. Re1 {[%emt 0:01:18]} O-O {[%emt 0:04:01]} 11. Nbd2 {[%emt 0:01:27]} Qb8 {[%emt 0:00:26]} 12. Nf1 {[%emt 0:01:43]} Qa7 {[%emt 0:00:44]} 13. Re2 {[%emt 0:01:36]} Nh5 {[%emt 0:01:33]} 14. N1h2 {[%emt 0:07:28]} Rad8 {[%emt 0:15:18]} 15. Bd2 {[%emt 0:08:51]} Ne7 {[%emt 0:09:16]} 16. Ng4 {[%emt 0:06:27]} Ng6 {[%emt 0:01:17]} 17. Be1 {[%emt 0:06:46]} Rfe8 {[%emt 0:07:30]} 18. a3 {[%emt 0:05:40]} Bc8 {[%emt 0:02:49]} 19. Bb3 {[%emt 0:03:05]} Be6 {[%emt 0:00:45]} 20. Bc2 {[%emt 0:00:25]} c6 {[%emt 0:00:36]} 21. Qc1 {[%emt 0:03:50]} Ngf4 {[%emt 0:05:04]} 22. Rd2 {[%emt 0:01:04]} Ng3 {[%emt 0:02:28]} 23. Bd1 {[%emt 0:01:51]} Bb3 {[%emt 0:08:53]} 24. Kh2 {[%emt 0:01:05]} Nf1+ {[%emt 0:00:24]} 25. Kg1 {[%emt 0:01:13]} Nxd2 {[%emt 0:00:43]} 26. Qxd2 {[%emt 0:01:46]} Bxd1 {[%emt 0:00:48]} 27. Rxd1 {[%emt 0:00:04]} h5 {[%emt 0:01:24]} 28. Ngh2 {[%emt 0:00:33]} d5 {[%emt 0:02:32]} 29. Nxe5 {[%emt 0:02:43]} Nxh3+ {[%emt 0:00:35]} 30. gxh3 {[%emt 0:00:19]} Rxe5 {[%emt 0:00:15]} 31. exd5 {[%emt 0:00:31]} Rdxd5 {[%emt 0:02:25]} 32. Nf3 {[%emt 0:00:52]} Re6 {[%emt 0:01:55]} 33. d4 {[%emt 0:01:56]} c5 {[%emt 0:04:54]} 34. Ng5 {[%emt 0:02:21]} Rxg5+ {[%emt 0:02:18]} 35. Qxg5 {[%emt 0:00:55]} Rg6 {[%emt 0:00:04]} 0-1

[Event "GER-ch Youth U10 2020"]
[Site "Willingen"]
[Date "2020.10.30"]
[Round "5.14"]
[White "Geist, Tim"]
[Black "Mandalka, Justus"]
[Result "1/2-1/2"]
[ECO "D02"]
[WhiteElo "1578"]
[BlackElo "1437"]
[Annotator "NA RC"]
[PlyCount "69"]
[EventDate "2020.10.27"]
[EventType "swiss"]
[EventRounds "7"]
[EventCountry "GER"]
[SourceTitle "playchess.com"]
[Source "ChessBase"]
[SourceQuality "1"]
[TimeControl "40/4500+30:900+30"]

1. d4 {[%emt 0:00:00]} d5 {[%emt 0:00:00]} 2. Nf3 {[%emt 0:00:00]} e6 {[%emt 0:00:00]} 3. e3 {[%emt 0:00:05]} c5 {[%emt 0:00:00]} 4. b3 {[%emt 0:00:21]} Nc6 {[%emt 0:00:01]} 5. Bb2 {[%emt 0:00:19]} Nf6 {[%emt 0:00:18]} 6. Bd3 {[%emt 0:00:18]} Be7 {[%emt 0:00:11]} 7. O-O {[%emt 0:00:13]} O-O {[%emt 0:00:06]} 8. Nbd2 {[%emt 0:00:16]} Qc7 {[%emt 0:00:35]} 9. a3 {[%emt 0:00:08]} b6 {[%emt 0:00:23]} 10. Ne5 {[%emt 0:00:20]} Nd7 {[%emt 0:00:34]} 11. f4 {[%emt 0:00:32]} f5 {[%emt 0:00:08]} 12. Nxd7 {[%emt 0:00:39]} Qxd7 {[%emt 0:01:18]} 13. Nf3 {[%emt 0:00:25]} Bb7 {[%emt 0:00:41]} 14. Ne5 {[%emt 0:00:29]} Nxe5 {[%emt 0:01:29]} 15. fxe5 {[%emt 0:00:17]} b5 {[%emt 0:01:40]} 16. Qe2 {[%emt 0:00:46]} c4 {[%emt 0:01:56]} 17. Bxf5 {[%emt 0:02:19]} exf5 {[%emt 0:01:50]} 18. Rf3 {[%emt 0:02:52]} a5 {[%emt 0:01:40]} 19. a4 {[%emt 0:01:09]} Bc6 {[%emt 0:01:43]} 20. Rh3 {[%emt 0:01:06]} g6 {[%emt 0:00:45]} 21. Rg3 {[%emt 0:04:42]} Kh8 {[%emt 0:03:30]} 22. e4 {[%emt 0:01:51]} fxe4 {[%emt 0:02:56]} 23. Qe3 {[%emt 0:00:43]} Rg8 {[%emt 0:02:20]} 24. Bc1 {[%emt 0:04:08]} cxb3 {[%emt 0:03:22]} 25. cxb3 {[%emt 0:01:05]} bxa4 {[%emt 0:00:05]} 26. bxa4 {[%emt 0:00:25]} Bxa4 {[%emt 0:00:15]} 27. e6 {[%emt 0:01:03]} Qc6 {[%emt 0:01:24]} 28. Bb2 {[%emt 0:00:55]} Bb5 {[%emt 0:01:25]} 29. Qxe4 {[%emt 0:01:49]} Bf6 {[%emt 0:03:25]} 30. Qe3 {[%emt 0:01:59]} Rge8 {[%emt 0:02:20]} 31. Rxg6 {[%emt 0:01:47]} Qc2 {[%emt 0:09:01]} 32. Rxf6 {[%emt 0:01:19]} Qxb2 {[%emt 0:00:39]} 33. Rf8+ {[%emt 0:01:14]} Rxf8 34. Qe5+ Kg8 35. Qg5+ 1/2-1/2